[Event "2nd Namma Bengaluru Open-A 2025"]
[Site "Bengaluru"]
[Date "2025.04.13"]
[Round "5.20"]
[White "Anuj Shrivatri"]
[Black "Vignesh B"]
[Result "1-0"]
[Annotator "ChessBase"]
[ECO "E68"]
[WhiteElo "2400"]
[BlackElo "2191"]
[PlyCount "61"]
[EventDate "2025.04.10"]
[EventType "swiss"]
[EventCountry "IND"]
[SourceTitle "playchess.com"]
[Source "ChessBase"]
[SourceQuality "1"]
[TimeControl "5400+30"]

1. d4 {[%emt 0:00:30]} Nf6 {[%emt 0:00:30]} 2. c4 {[%emt 0:00:30]} g6 {[%emt 0:00:30]} 3. g3 {[%emt 0:00:30]} Bg7 {[%emt 0:00:30]} 4. Bg2 {[%emt 0:00:30]} d6 {[%emt 0:00:30]} 5. Nc3 {[%emt 0:00:30]} O-O {[%emt 0:00:30]} 6. Nf3 {[%emt 0:00:30]} Bf5 {[%emt 0:00:30]} 7. Nh4 {[%emt 0:00:30]} Bc8 {[%emt 0:00:30]} 8. O-O {[%emt 0:00:30]} e5 {[%emt 0:00:30]} 9. Nf3 {[%emt 0:00:30]} exd4 {[%emt 0:00:30]} 10. Nxd4 {[%emt 0:00:30]} Nbd7 {[%emt 0:00:30]} 11. e4 {[%emt 0:00:30]} Nc5 {[%emt 0:00:30]} 12. h3 {[%emt 0:00:30]} Re8 {[%emt 0:00:30]} 13. Re1 {[%emt 0:00:30]} h6 {[%emt 0:00:30]} 14. Kh2 {[%emt 0:00:30]} a5 {[%emt 0:00:30]} 15. Rb1 {[%emt 0:00:30]} a4 {[%emt 0:00:30]} 16. Ndb5 {[%emt 0:00:30]} Bd7 {[%emt 0:00:30]} 17. Bf4 {[%emt 0:00:30]} Bxb5 {[%emt 0:00:30]} 18. cxb5 {[%emt 0:00:30]} Nfd7 {[%emt 0:00:30]} 19. Qc2 {[%emt 0:00:30]} h5 {[%emt 0:00:30]} 20. Nd5 {[%emt 0:00:30]} Ne5 {[%emt 0:00:30]} 21. Rbd1 {[%emt 0:00:30]} h4 {[%emt 0:00:30]} 22. gxh4 {[%emt 0:00:30]} c6 {[%emt 0:00:30]} 23. Ne3 {[%emt 0:00:30]} Qxh4 {[%emt 0:00:30]} 24. Bg3 {[%emt 0:00:30]} Qh5 {[%emt 0:00:30]} 25. Rxd6 {[%emt 0:00:30]} cxb5 {[%emt 0:00:30]} 26. f4 {[%emt 0:00:30]} Nf3+ {[%emt 0:00:30]} 27. Bxf3 {[%emt 0:00:30]} Qxf3 {[%emt 0:00:30]} 28. Qxc5 {[%emt 0:00:30]} Rxe4 {[%emt 0:00:30]} 29. Ng2 {[%emt 0:00:30]} Rxe1 {[%emt 0:00:30]} 30. Nxe1 {[%emt 0:00:30]} Qe4 {[%emt 0:00:30]} 31. Qd5 {[%emt 0:00:30]} 1-0

[Event "2nd Namma Bengaluru Open-A 2025"]
[Site "Bengaluru"]
[Date "2025.04.13"]
[Round "5.21"]
[White "Saravana, Krishnan P."]
[Black "Fedorov, Alexei"]
[Result "0-1"]
[Annotator "ChessBase"]
[ECO "B32"]
[WhiteElo "2177"]
[BlackElo "2396"]
[PlyCount "78"]
[EventDate "2025.04.10"]
[EventType "swiss"]
[EventCountry "IND"]
[SourceTitle "playchess.com"]
[Source "ChessBase"]
[SourceQuality "1"]
[TimeControl "5400+30"]

1. e4 {[%emt 0:00:30]} c5 {[%emt 0:00:30]} 2. Nf3 {[%emt 0:00:30]} Nc6 {[%emt 0:00:30]} 3. d4 {[%emt 0:00:30]} cxd4 {[%emt 0:00:30]} 4. Nxd4 {[%emt 0:00:30]} Qb6 {[%emt 0:00:30]} 5. Nb3 {[%emt 0:00:30]} e6 {[%emt 0:00:30]} 6. Nc3 {[%emt 0:00:30]} Qc7 {[%emt 0:00:30]} 7. Qe2 {[%emt 0:00:30]} a6 {[%emt 0:00:30]} 8. Be3 {[%emt 0:00:30]} b5 {[%emt 0:00:30]} 9. O-O-O {[%emt 0:00:30]} Ne5 {[%emt 0:00:30]} 10. Bd4 {[%emt 0:00:30]} Nc4 {[%emt 0:00:30]} 11. h4 {[%emt 0:00:30]} Bb7 {[%emt 0:00:30]} 12. Rh3 {[%emt 0:00:30]} Rc8 {[%emt 0:00:30]} 13. g4 {[%emt 0:00:30]} b4 {[%emt 0:00:30]} 14. Qxc4 {[%emt 0:00:30]} Qxc4 {[%emt 0:00:30]} 15. Bxc4 {[%emt 0:00:30]} bxc3 {[%emt 0:00:30]} 16. Rxc3 {[%emt 0:00:30]} h5 {[%emt 0:00:30]} 17. g5 {[%emt 0:00:30]} Bb4 {[%emt 0:00:30]} 18. Bxg7 {[%emt 0:00:30]} Rh7 {[%emt 0:00:30]} 19. Bxa6 {[%emt 0:00:30]} Bxa6 {[%emt 0:00:30]} 20. Rxc8+ {[%emt 0:00:30]} Bxc8 {[%emt 0:00:30]} 21. Bd4 {[%emt 0:00:30]} Ne7 {[%emt 0:00:30]} 22. Be5 {[%emt 0:00:30]} Ng6 {[%emt 0:00:30]} 23. Bg3 {[%emt 0:00:30]} e5 {[%emt 0:00:30]} 24. Rd5 {[%emt 0:00:30]} Be7 {[%emt 0:00:30]} 25. a4 {[%emt 0:00:30]} f6 {[%emt 0:00:30]} 26. gxf6 {[%emt 0:00:30]} Bxf6 {[%emt 0:00:30]} 27. a5 {[%emt 0:00:30]} Nxh4 {[%emt 0:00:30]} 28. Rd6 {[%emt 0:00:30]} Bg5+ {[%emt 0:00:30]} 29. Kd1 {[%emt 0:00:30]} Ke7 {[%emt 0:00:30]} 30. Rb6 {[%emt 0:00:30]} d6 {[%emt 0:00:30]} 31. a6 {[%emt 0:00:30]} Bg4+ {[%emt 0:00:30]} 32. Ke1 {[%emt 0:00:30]} Nf3+ {[%emt 0:00:30]} 33. Kf1 {[%emt 0:00:30]} Rh8 {[%emt 0:00:30]} 34. a7 {[%emt 0:00:30]} Ra8 {[%emt 0:00:30]} 35. Rb7+ {[%emt 0:00:30]} Ke6 {[%emt 0:00:30]} 36. c3 {[%emt 0:00:30]} h4 {[%emt 0:00:30]} 37. Bxh4 {[%emt 0:00:30]} Nxh4 {[%emt 0:00:30]} 38. Na5 {[%emt 0:00:30]} Bf3 {[%emt 0:00:30]} 39. Rg7 {[%emt 0:00:30]} Bf6 {[%emt 0:00:30]} 0-1

[Event "2nd Namma Bengaluru Open-A 2025"]
[Site "Bengaluru"]
[Date "2025.04.13"]
[Round "5.22"]
[White "Sherla Prathamesh"]
[Black "Hari Madhavan N B"]
[Result "0-1"]
[Annotator "ChessBase"]
[ECO "A11"]
[WhiteElo "2157"]
[BlackElo "2393"]
[PlyCount "72"]
[EventDate "2025.04.10"]
[EventType "swiss"]
[EventCountry "IND"]
[SourceTitle "playchess.com"]
[Source "ChessBase"]
[SourceQuality "1"]
[TimeControl "5400+30"]

1. c4 {[%emt 0:00:30]} c6 {[%emt 0:00:30]} 2. Nf3 {[%emt 0:00:30]} d5 {[%emt 0:00:30]} 3. e3 {[%emt 0:00:30]} Nf6 {[%emt 0:00:30]} 4. Nc3 {[%emt 0:00:30]} a6 {[%emt 0:00:30]} 5. b3 {[%emt 0:00:30]} Bg4 {[%emt 0:00:30]} 6. Be2 {[%emt 0:00:30]} e6 {[%emt 0:00:30]} 7. h3 {[%emt 0:00:30]} Bh5 {[%emt 0:00:30]} 8. O-O {[%emt 0:00:30]} Nbd7 {[%emt 0:00:30]} 9. d4 {[%emt 0:00:30]} Bd6 {[%emt 0:00:30]} 10. Nd2 {[%emt 0:00:30]} Bg6 {[%emt 0:00:30]} 11. f4 {[%emt 0:00:30]} O-O {[%emt 0:00:30]} 12. c5 {[%emt 0:00:30]} Bc7 {[%emt 0:00:30]} 13. b4 {[%emt 0:00:30]} b6 {[%emt 0:00:30]} 14. cxb6 {[%emt 0:00:30]} Nxb6 {[%emt 0:00:30]} 15. Nb3 {[%emt 0:00:30]} Nc4 {[%emt 0:00:30]} 16. Bd3 {[%emt 0:00:30]} a5 {[%emt 0:00:30]} 17. b5 {[%emt 0:00:30]} Bd6 {[%emt 0:00:30]} 18. bxc6 {[%emt 0:00:30]} a4 {[%emt 0:00:30]} 19. Nc5 {[%emt 0:00:30]} Bxc5 {[%emt 0:00:30]} 20. dxc5 {[%emt 0:00:30]} Qa5 {[%emt 0:00:30]} 21. Nxd5 {[%emt 0:00:30]} exd5 {[%emt 0:00:30]} 22. f5 {[%emt 0:00:30]} Bh5 {[%emt 0:00:30]} 23. g4 {[%emt 0:00:30]} Qxc5 {[%emt 0:00:30]} 24. gxh5 {[%emt 0:00:30]} h6 {[%emt 0:00:30]} 25. Bxc4 {[%emt 0:00:30]} dxc4 {[%emt 0:00:30]} 26. Bb2 {[%emt 0:00:30]} c3 {[%emt 0:00:30]} 27. Qc1 {[%emt 0:00:30]} Ne4 {[%emt 0:00:30]} 28. Ba3 {[%emt 0:00:30]} Qe5 {[%emt 0:00:30]} 29. Rf4 {[%emt 0:00:30]} Rfe8 {[%emt 0:00:30]} 30. Qc2 {[%emt 0:00:30]} Ng5 {[%emt 0:00:30]} 31. Kg2 {[%emt 0:00:30]} Qxe3 {[%emt 0:00:30]} 32. Raf1 {[%emt 0:00:30]} Qxh3+ {[%emt 0:00:30]} 33. Kg1 {[%emt 0:00:30]} Qxh5 {[%emt 0:00:30]} 34. Qxc3 {[%emt 0:00:30]} Nh3+ {[%emt 0:00:30]} 35. Kg2 {[%emt 0:00:30]} Re2+ {[%emt 0:00:30]} 36. Kg3 {[%emt 0:00:30]} Nxf4 {[%emt 0:00:30]} 0-1

[Event "2nd Namma Bengaluru Open-A 2025"]
[Site "Bengaluru"]
[Date "2025.04.13"]
[Round "5.23"]
[White "Panda Sambit"]
[Black "Anadkat Kartavya"]
[Result "*"]
[Annotator "RC"]
[ECO "D90"]
[WhiteElo "2391"]
[BlackElo "2187"]
[PlyCount "50"]
[EventDate "2025.04.10"]
[EventType "swiss"]
[EventCountry "IND"]
[SourceTitle "playchess.com"]
[Source "ChessBase"]
[SourceQuality "1"]
[TimeControl "5400+30"]

1. d4 {[%emt 0:00:21]} Nf6 {[%emt 0:02:00]} 2. c4 {[%emt 0:00:12]} g6 {[%emt 0:01:44]} 3. Nc3 {[%emt 0:00:14]} d5 {[%emt 0:00:03]} 4. Nf3 {[%emt 0:01:20]} Bg7 {[%emt 0:00:08]} 5. h4 {[%emt 0:00:44]} c6 {[%emt 0:00:56]} 6. cxd5 {[%emt 0:00:25]} cxd5 {[%emt 0:00:44]} 7. Bf4 {[%emt 0:00:11]} Nc6 {[%emt 0:00:33]} 8. e3 {[%emt 0:00:09]} O-O {[%emt 0:04:20]} 9. Be2 {[%emt 0:00:25]} Bg4 {[%emt 0:05:19]} 10. Ne5 {[%emt 0:07:50]} Bxe2 {[%emt 0:00:27]} 11. Qxe2 {[%emt 0:00:37]} Rc8 {[%emt 0:00:57]} 12. O-O {[%emt 0:17:10]} e6 {[%emt 0:12:01]} 13. Nf3 {[%emt 0:07:21]} Ne4 {[%emt 0:06:55]} 14. Rfc1 {[%emt 0:03:47]} h6 {[%emt 0:02:05]} 15. Bh2 {[%emt 0:08:24]} a6 {[%emt 0:03:18]} 16. Nxe4 {[%emt 0:09:37]} dxe4 {[%emt 0:00:46]} 17. Nd2 {[%emt 0:00:07]} f5 {[%emt 0:05:00]} 18. h5 {[%emt 0:01:36]} gxh5 {[%emt 0:09:07]} 19. Qxh5 {[%emt 0:01:34]} Qe7 {[%emt 0:12:31]} 20. Bf4 {[%emt 0:05:58]} Kh7 {[%emt 0:03:43]} 21. a3 {[%emt 0:05:52]} Rcd8 {[%emt 0:01:25]} 22. Rc2 {[%emt 0:05:42]} e5 {[%emt 0:02:26]} 23. dxe5 {[%emt 0:00:12]} Nxe5 {[%emt 0:00:16]} 24. Bxe5 {[%emt 0:04:49]} Bxe5 {[%emt 0:00:22]} 25. g3 {[%emt 0:01:01]} Qg7 {[%emt 0:06:34]} *

[Event "2nd Namma Bengaluru Open-A 2025"]
[Site "Bengaluru"]
[Date "2025.04.13"]
[Round "5.23"]
[White "Panda Sambit"]
[Black "Anadkat Kartavya"]
[Result "1-0"]
[Annotator "ChessBase"]
[ECO "A30"]
[WhiteElo "2391"]
[BlackElo "2187"]
[PlyCount "31"]
[EventDate "2025.04.10"]
[EventType "swiss"]
[EventCountry "IND"]
[SourceTitle "playchess.com"]
[Source "ChessBase"]
[SourceQuality "1"]
[TimeControl "5400+30"]

1. Nf3 {[%emt 0:00:30]} Nf6 {[%emt 0:00:30]} 2. c4 {[%emt 0:00:30]} b6 {[%emt 0:00:30]} 3. g3 {[%emt 0:00:30]} Bb7 {[%emt 0:00:30]} 4. Bg2 {[%emt 0:00:30]} e6 {[%emt 0:00:30]} 5. O-O {[%emt 0:00:30]} c5 {[%emt 0:00:30]} 6. Nc3 {[%emt 0:00:30]} Be7 {[%emt 0:00:30]} 7. Re1 {[%emt 0:00:30]} O-O {[%emt 0:00:30]} 8. e4 {[%emt 0:00:30]} d6 {[%emt 0:00:30]} 9. d4 {[%emt 0:00:30]} cxd4 {[%emt 0:00:30]} 10. Nxd4 {[%emt 0:00:30]} Qc7 {[%emt 0:00:30]} 11. Be3 {[%emt 0:00:30]} a6 {[%emt 0:00:30]} 12. f4 {[%emt 0:00:30]} Nbd7 {[%emt 0:00:30]} 13. g4 {[%emt 0:00:30]} g6 {[%emt 0:00:30]} 14. g5 {[%emt 0:00:30]} Nh5 {[%emt 0:00:30]} 15. f5 {[%emt 0:00:30]} b5 {[%emt 0:00:30]} 16. Nb3 {[%emt 0:00:30]} 1-0

[Event "2nd Namma Bengaluru Open-A 2025"]
[Site "Bengaluru"]
[Date "2025.04.13"]
[Round "5.24"]
[White "Sammed Jaykumar, Shete"]
[Black "Rajarishi Karthi"]
[Result "1-0"]
[Annotator "ChessBase"]
[ECO "C07"]
[WhiteElo "2391"]
[BlackElo "2155"]
[PlyCount "51"]
[EventDate "2025.04.10"]
[EventType "swiss"]
[EventCountry "IND"]
[SourceTitle "playchess.com"]
[Source "ChessBase"]
[SourceQuality "1"]
[TimeControl "5400+30"]

1. e4 {[%emt 0:00:30]} e6 {[%emt 0:00:30]} 2. d4 {[%emt 0:00:30]} d5 {[%emt 0:00:30]} 3. Nd2 {[%emt 0:00:30]} c5 {[%emt 0:00:30]} 4. exd5 {[%emt 0:00:30]} Qxd5 {[%emt 0:00:30]} 5. dxc5 {[%emt 0:00:30]} Bxc5 {[%emt 0:00:30]} 6. Ngf3 {[%emt 0:00:30]} Nf6 {[%emt 0:00:30]} 7. Bc4 {[%emt 0:00:30]} Qd8 {[%emt 0:00:30]} 8. O-O {[%emt 0:00:30]} O-O {[%emt 0:00:30]} 9. Qe2 {[%emt 0:00:30]} Nc6 {[%emt 0:00:30]} 10. Nb3 {[%emt 0:00:30]} Bd6 {[%emt 0:00:30]} 11. Bg5 {[%emt 0:00:30]} Qc7 {[%emt 0:00:30]} 12. Bxf6 {[%emt 0:00:30]} gxf6 {[%emt 0:00:30]} 13. Rad1 {[%emt 0:00:30]} Ne5 {[%emt 0:00:30]} 14. Nxe5 {[%emt 0:00:30]} fxe5 {[%emt 0:00:30]} 15. Rd3 {[%emt 0:00:30]} f5 {[%emt 0:00:30]} 16. Rfd1 {[%emt 0:00:30]} Be7 {[%emt 0:00:30]} 17. Rc3 {[%emt 0:00:30]} Qc6 {[%emt 0:00:30]} 18. Rg3+ {[%emt 0:00:30]} Kh8 {[%emt 0:00:30]} 19. Qxe5+ {[%emt 0:00:30]} Rf6 {[%emt 0:00:30]} 20. Bb5 {[%emt 0:00:30]} Qxc2 {[%emt 0:00:30]} 21. Rc1 {[%emt 0:00:30]} Qe4 {[%emt 0:00:30]} 22. Qc7 {[%emt 0:00:30]} Qb4 {[%emt 0:00:30]} 23. Nc5 {[%emt 0:00:30]} Qd2 {[%emt 0:00:30]} 24. Nd3 {[%emt 0:00:30]} Bf8 {[%emt 0:00:30]} 25. Qd8 {[%emt 0:00:30]} Rf7 {[%emt 0:00:30]} 26. Be8 {[%emt 0:00:30]} 1-0

[Event "2nd Namma Bengaluru Open-A 2025"]
[Site "Bengaluru"]
[Date "2025.04.13"]
[Round "5.25"]
[White "Avirat Chauhan"]
[Black "Vignesh B"]
[Result "0-1"]
[Annotator "ChessBase"]
[ECO "B15"]
[WhiteElo "2145"]
[BlackElo "2191"]
[PlyCount "94"]
[EventDate "2025.04.10"]
[EventType "swiss"]
[EventCountry "IND"]
[SourceTitle "playchess.com"]
[Source "ChessBase"]
[SourceQuality "1"]
[TimeControl "5400+30"]

1. e4 {[%emt 0:00:30]} c6 {[%emt 0:00:30]} 2. d4 {[%emt 0:00:30]} d5 {[%emt 0:00:30]} 3. Nc3 {[%emt 0:00:30]} dxe4 {[%emt 0:00:30]} 4. Nxe4 {[%emt 0:00:30]} Nf6 {[%emt 0:00:30]} 5. Nxf6+ {[%emt 0:00:30]} exf6 {[%emt 0:00:30]} 6. Be3 {[%emt 0:00:30]} Qb6 {[%emt 0:00:30]} 7. Qe2 {[%emt 0:00:30]} Bd6 {[%emt 0:00:30]} 8. O-O-O {[%emt 0:00:30]} O-O {[%emt 0:00:30]} 9. Qh5 {[%emt 0:00:30]} Be6 {[%emt 0:00:30]} 10. Kb1 {[%emt 0:00:30]} g6 {[%emt 0:00:30]} 11. Qe2 {[%emt 0:00:30]} Qa5 {[%emt 0:00:30]} 12. c4 {[%emt 0:00:30]} Bf5+ {[%emt 0:00:30]} 13. Ka1 {[%emt 0:00:30]} Na6 {[%emt 0:00:30]} 14. Bd2 {[%emt 0:00:30]} Bb4 {[%emt 0:00:30]} 15. Nf3 {[%emt 0:00:30]} Rfe8 {[%emt 0:00:30]} 16. Be3 {[%emt 0:00:30]} Bf8 {[%emt 0:00:30]} 17. Rd3 {[%emt 0:00:30]} Nb4 {[%emt 0:00:30]} 18. Ra3 {[%emt 0:00:30]} Nc2+ {[%emt 0:00:30]} 19. Qxc2 {[%emt 0:00:30]} Bxa3 {[%emt 0:00:30]} 20. Bd3 {[%emt 0:00:30]} Bxd3 {[%emt 0:00:30]} 21. Qxd3 {[%emt 0:00:30]} Bf8 {[%emt 0:00:30]} 22. g4 {[%emt 0:00:30]} b5 {[%emt 0:00:30]} 23. c5 {[%emt 0:00:30]} Qd8 {[%emt 0:00:30]} 24. d5 {[%emt 0:00:30]} Qxd5 {[%emt 0:00:30]} 25. Qxd5 {[%emt 0:00:30]} cxd5 {[%emt 0:00:30]} 26. Rc1 {[%emt 0:00:30]} Re4 {[%emt 0:00:30]} 27. Nd4 {[%emt 0:00:30]} Rc8 {[%emt 0:00:30]} 28. Nxb5 {[%emt 0:00:30]} d4 {[%emt 0:00:30]} 29. Nxd4 {[%emt 0:00:30]} Rxc5 {[%emt 0:00:30]} 30. Rg1 {[%emt 0:00:30]} Rd5 {[%emt 0:00:30]} 31. Ne2 {[%emt 0:00:30]} Rd7 {[%emt 0:00:30]} 32. Nc3 {[%emt 0:00:30]} Rc4 {[%emt 0:00:30]} 33. Kb1 {[%emt 0:00:30]} Bc5 {[%emt 0:00:30]} 34. Bxc5 {[%emt 0:00:30]} Rxc5 {[%emt 0:00:30]} 35. Kc2 {[%emt 0:00:30]} Kg7 {[%emt 0:00:30]} 36. b4 {[%emt 0:00:30]} Rc4 {[%emt 0:00:30]} 37. a3 {[%emt 0:00:30]} Rf4 {[%emt 0:00:30]} 38. Rg2 {[%emt 0:00:30]} Rf3 {[%emt 0:00:30]} 39. Nb1 {[%emt 0:00:30]} Rd4 {[%emt 0:00:30]} 40. Kb2 {[%emt 0:00:30]} Rdf4 {[%emt 0:00:30]} 41. b5 {[%emt 0:00:30]} Rxf2+ {[%emt 0:00:30]} 42. Rxf2 {[%emt 0:00:30]} Rxf2+ {[%emt 0:00:30]} 43. Kb3 {[%emt 0:00:30]} Rxh2 {[%emt 0:00:30]} 44. a4 {[%emt 0:00:30]} h5 {[%emt 0:00:30]} 45. gxh5 {[%emt 0:00:30]} gxh5 {[%emt 0:00:30]} 46. a5 {[%emt 0:00:30]} Re2 {[%emt 0:00:30]} 47. Nc3 {[%emt 0:00:30]} Re6 {[%emt 0:00:30]} 0-1

[Event "2nd Namma Bengaluru Open-A 2025"]
[Site "Bengaluru"]
[Date "2025.04.13"]
[Round "5.26"]
[White "Srihari L R"]
[Black "Murugan, Krishnamoorthy"]
[Result "*"]
[Annotator "TA"]
[ECO "A45"]
[WhiteElo "2481"]
[BlackElo "2147"]
[PlyCount "117"]
[EventDate "2025.04.10"]
[EventType "swiss"]
[EventCountry "IND"]
[SourceTitle "playchess.com"]
[Source "ChessBase"]
[SourceQuality "1"]
[TimeControl "5400+30"]

{[%evp 9,117,4,30,22,19,19,20,15,30,9,31,24,25,-10,-8,-6,-8,-14,-8,-12,0,0,0,0,0,0,0,-8,0,0,0,-8,-4,-12,-12,-75,-16,-88,-96,-95,-97,-103,-103,-114,-106,-100,-94,-99,-99,-92,-119,-113,-94,-162,-136,-102,-118,-179,-180,-247,-77,-118,-81,-245,-245,-245,-244,-230,-230,-230,-228,-230,0,0,0,-233,-244,-241,-226,-222,-125,-127,-98,-104,-72,-78,-82,-215,-46,-125,0,0,0,0,0,0,0,0,146,89,101,0,0,0,0,0,0,0,0,-29991]} 1. d4 {[%emt 0:00:05]} Nf6 {[%emt 0:00:10]} 2. Bf4 {[%emt 0:00:15]} e6 {[%emt 0:01:30]} 3. e3 {[%emt 0:00:16]} c5 {[%emt 0:00:12]} 4. c3 {[%emt 0:00:23]} b6 {[%emt 0:00:40]} 5. Nd2 {[%emt 0:01:00]} cxd4 {[%emt 0:01:42]} 6. exd4 {[%emt 0:00:10] A45: Trompowsky Attack.} Ba6 {[%emt 0:00:27]} 7. Bxa6 {[%emt 0:04:46]} Nxa6 {[%emt 0:00:06]} 8. Nc4 $146 {[%emt 0:02:54]} (8. Ngf3 Be7 9. h3 O-O 10. O-O d6 11. Qe2 Nc7 12. a4 Qd7 13. Rfe1 a6 14. Nc4 {0-1 Ovod,E (2260)-Omonova,U (2257) Wch Rapid (Women) 2023 (1)}) 8... Qc8 {[%emt 0:10:09]} 9. Qe2 {[%emt 0:06:05]} b5 {[%emt 0:01:11]} 10. Ne3 {[%emt 0:01:22]} Nc7 {[%emt 0:06:03]} 11. Nf3 {[%emt 0:21:13]} Ncd5 {[%emt 0:10:33]} 12. Nxd5 {[%emt 0:00:12]} Nxd5 {[%emt 0:00:06]} 13. Bd2 {[%emt 0:00:12][%cal Oa2a4]} Rb8 {[%emt 0:01:17]} 14. O-O {[%emt 0:58:37]} Be7 {[%emt 0:00:42]} 15. a4 {[%emt 0:00:00]} Qc4 {[%emt 0:09:51]} 16. Qd1 {[%emt 0:00:00]} a6 {[%emt 0:02:33]} 17. axb5 {[%emt 0:00:00]} axb5 {[%emt 0:01:35]} 18. Ra7 {[%emt 0:00:00]} d6 {[%emt 0:02:05] Prevents Ne5} 19. b3 {[%emt 0:00:00]} Qc6 {[%emt 0:04:01]} 20. Qc2 {[%emt 0:00:00]} O-O {[%emt 0:05:57]} 21. Rfa1 {[%emt 0:00:00]} Rfc8 {[%emt 0:03:46]} 22. R1a6 {[%emt 0:00:00]} (22. Qd3 $11 {keeps the balance.}) 22... Rb6 {[%emt 0:00:20]} (22... Qxa6 $1 $17 23. Rxa6 Nb4) 23. Rxb6 {[%emt 0:00:00]} (23. Ra1 $11) 23... Qxb6 $17 {[%emt 0:00:04]} 24. Qa2 {[%emt 0:00:00]} Nxc3 {[%emt 0:04:35]} 25. Bxc3 {[%emt 0:00:00]} Rxc3 {[%emt 0:00:04]} 26. h3 {[%emt 0:00:00]} Bf8 {[%emt 0:01:10]} 27. Ra8 {[%emt 0:00:00]} h6 {[%emt 0:01:55]} 28. d5 {[%emt 0:00:00]} e5 {[%emt 0:03:07]} (28... exd5 29. Qe2 Rc1+ (29... Rxb3 $2 30. Qe7 $18) 30. Kh2 $11) 29. Re8 {[%emt 0:00:00]} Qb7 {[%emt 0:03:22]} 30. Qa5 {[%emt 0:00:00]} Rc7 {[%emt 0:02:45][%cal Oh6h5]} (30... Rxb3 $2 31. Rxf8+ Kh7 32. Qd8 Rxf3 33. gxf3 $18) 31. Nd2 {[%emt 0:00:00]} (31. Ne1 $17) 31... g6 {[%emt 0:03:06][%cal Of7f5]} (31... Rc1+ $6 32. Kh2 Rc8 (32... Qxd5 $2 33. Rxf8+ Kh7 34. Qb4 $18) 33. Rxc8 Qxc8 34. Qxb5 $15) 32. Ne4 {[%emt 0:00:00]} Kg7 $1 {[%emt 0:00:05][%cal Of8e7]} 33. Kh2 {[%emt 0:01:03]} (33. Nc3 $17) 33... Be7 $1 $19 {[%emt 0:02:51]} 34. Nc3 {[%emt 0:00:56]} (34. Ra8 {keeps fighting.}) 34... b4 $2 {[%emt 0:01:18]} (34... Rc5 $19 {is more deadly.} 35. Qb4 Qd7) 35. Ne4 $17 {[%emt 0:01:23]} f5 {[%emt 0:01:43]} (35... Qa7 {simplifies} 36. Qxa7 Rxa7 37. Nd2 Bh4) 36. Rxe7+ $2 {[%emt 0:00:12]} Rxe7 $19 {[%emt 0:01:33]} 37. Nxd6 $17 {[%emt 0:00:02][%mdl 4096] Endgame KQR-KQN} Qa7 {[%emt 0:03:08]} 38. Qxb4 {[%emt 0:01:26]} Rd7 $1 {[%emt 0:00:06][%cal Oe5e4]} (38... Qxf2 39. Nxf5+ Qxf5 40. Qxe7+ Kg8 41. Qc5 $18) 39. Ne8+ {[%emt 0:00:44]} Kf7 {[%emt 0:00:07]} 40. Nd6+ {[%emt 0:00:03]} Kg7 {[%emt 0:00:24]} 41. Ne8+ {[%emt 0:00:48]} Kf7 {[%emt 0:00:15]} 42. Nd6+ {[%emt 0:00:01]} Kg8 {[%emt 0:01:23][%cal Oe5e4]} 43. f3 {[%emt 0:00:32]} Qc7 {[%emt 0:04:57]} 44. Nb5 {[%emt 0:00:19]} Qc1 {[%emt 0:00:55]} ({Black should try} 44... Qb6 $19 45. Qc4 e4 46. fxe4 fxe4 47. Qc8+ Qd8) 45. Qc4 {[%emt 0:00:59]} Qf4+ {[%emt 0:01:08]} 46. Kg1 {[%emt 0:01:22]} Qe3+ {[%emt 0:01:30]} 47. Kh1 {[%emt 0:00:08] And now Qc8+ would win.} Qb6 {[%emt 0:01:25]} 48. b4 {[%emt 0:02:34] [#]} (48. Qc8+ $17 {only move.} Rd8 49. Qc4) 48... Kg7 $2 {[%emt 0:06:38]} (48... Rb7 $1 $19 49. Qc6 Qxb5 (49... Qxc6 $2 50. dxc6 Rb6 51. Na7 $18) 50. Qxg6+ Kf8 51. Qxh6+ Ke8 52. Qe6+ Kd8 53. Qf6+ Kc8 54. Qh8+ Kd7 55. Qxe5 Qxb4 56. Qxf5+ Kd8 57. Qf6+ Qe7) 49. d6 {[%emt 0:01:50] [#]} (49. Qc6 $1 $15 Qb7 (49... Rb7 $2 50. Nd6 $18) 50. Nc3) 49... Kf6 {[%emt 0:00:30]} (49... Qa6 $1 $17 {Threatens to win with ...Rb7.} 50. Qd5 e4) 50. Nc7 $11 {[%emt 0:00:37] Threatening mate with Ne8+.} Rxd6 {[%emt 0:00:00]} 51. Ne8+ {[%emt 0:00:04]} Ke7 {[%emt 0:00:00]} 52. Nxd6 {[%emt 0:00:03]} Qxd6 {[%emt 0:00:00] KQ-KQ} 53. b5 {[%emt 0:00:34]} f4 {[%emt 0:00:00]} (53... Qd1+ $11 54. Kh2 Qd6) 54. Qb3 {[%emt 0:01:44]} (54. Kh2 $142) 54... Qb6 {[%emt 0:00:00]} 55. Qg8 {[%emt 0:01:39]} (55. Kh2 $16) 55... Qxb5 {[%emt 0:00:00] The position is equal.} 56. Qg7+ {[%emt 0:00:14]} Kd8 {[%emt 0:00:03]} 57. Qxh6 {[%emt 0:00:33]} Qb1+ {[%emt 0:00:17]} 58. Kh2 {[%emt 0:00:04]} Qf5 {[%emt 0:00:03] Prevents Qg5+.  Loses game:     	White=2     	---        Missed win:     	---       	Black=2      Mistake:       	White=9     	Black=4      Inaccurate:     	White=1     	Black=2      OK:         	White=23    	Black=19     Best:        	White=2     	Black=7      Strong:       	---       	Black=2} 59. Qxg6 $2 {[%emt 0:02:36][%mdl 8192] Weighted Error Value: White=0.24 (precise) /Black=0.28 (precise)} *